[Event "*** Titled Tuesday Blitz"]
[Site "Chess.com"]
[Date "2020.05.05"]
[Round "7"]
[White "rakshi2005"]
[Black "Artem_Sadovsky"]
[Result "0-1"]
[WhiteElo "2305"]
[BlackElo "2547"]
[TimeControl "180+1"]
[EndTime "11:19:18 PDT"]
[Termination "Artem_Sadovsky won by checkmate"]

1. e4 {[%clk 0:03:00.9]} 1... g6 {[%clk 0:03:00.1]} 2. d4 {[%clk 0:03:00.9]}
2... Bg7 {[%clk 0:03:00.6]} 3. Nc3 {[%clk 0:03:01.5]} 3... c6 {[%clk 0:02:58.8]}
4. h3 {[%clk 0:02:54.9]} 4... d5 {[%clk 0:02:58.6]} 5. Nf3 {[%clk 0:02:53.2]}
5... dxe4 {[%clk 0:02:57.5]} 6. Nxe4 {[%clk 0:02:52.8]} 6... Nf6 {[%clk
0:02:55.7]} 7. Bd3 {[%clk 0:02:50.8]} 7... O-O {[%clk 0:02:50.9]} 8. Bg5 {[%clk
0:02:49.1]} 8... Nbd7 {[%clk 0:02:45.8]} 9. Nxf6+ {[%clk 0:02:38.1]} 9... Nxf6
{[%clk 0:02:41.6]} 10. Qe2 {[%clk 0:02:22.4]} 10... c5 {[%clk 0:02:37]} 11. dxc5
{[%clk 0:02:15.7]} 11... Qa5+ {[%clk 0:02:37.4]} 12. Bd2 {[%clk 0:02:12.6]}
12... Qxc5 {[%clk 0:02:37.7]} 13. O-O {[%clk 0:02:12.7]} 13... Nd5 {[%clk
0:02:35.7]} 14. c4 {[%clk 0:01:58.9]} 14... Nb4 {[%clk 0:02:33.1]} 15. Be4
{[%clk 0:01:46.6]} 15... f5 {[%clk 0:02:24.2]} 16. Bb1 {[%clk 0:01:43.8]} 16...
Bxb2 {[%clk 0:02:21.1]} 17. Be3 {[%clk 0:01:42.8]} 17... Qxe3 {[%clk 0:02:05.8]}
18. Qxe3 {[%clk 0:01:31.7]} 18... Bxa1 {[%clk 0:02:06.7]} 19. Bd3 {[%clk
0:01:24.3]} 19... e5 {[%clk 0:01:59.1]} 20. Rxa1 {[%clk 0:01:20.5]} 20... e4
{[%clk 0:01:55.7]} 21. Ne5 {[%clk 0:01:12]} 21... exd3 {[%clk 0:01:52.9]} 22.
Nxd3 {[%clk 0:01:01.5]} 22... Nc2 {[%clk 0:01:53.2]} 23. Qc1 {[%clk 0:00:52.8]}
23... Nxa1 {[%clk 0:01:53.6]} 24. Qxa1 {[%clk 0:00:53.7]} 24... Be6 {[%clk
0:01:53.4]} 25. Qe5 {[%clk 0:00:52.7]} 25... Bxc4 {[%clk 0:01:52.6]} 26. Nf4
{[%clk 0:00:50.9]} 26... Bf7 {[%clk 0:01:50.5]} 27. h4 {[%clk 0:00:49.3]} 27...
Rac8 {[%clk 0:01:43.7]} 28. h5 {[%clk 0:00:46.9]} 28... gxh5 {[%clk 0:01:40.7]}
29. Qxf5 {[%clk 0:00:44.6]} 29... Rc6 {[%clk 0:01:40.1]} 30. Qg5+ {[%clk
0:00:42.6]} 30... Bg6 {[%clk 0:01:39.8]} 31. Nxh5 {[%clk 0:00:38.2]} 31... Rf5
{[%clk 0:01:35.7]} 32. Qd8+ {[%clk 0:00:37.5]} 32... Rf8 {[%clk 0:01:36.1]} 33.
Qd5+ {[%clk 0:00:36.2]} 33... Bf7 {[%clk 0:01:33.6]} 34. Qg5+ {[%clk 0:00:23.8]}
34... Rg6 {[%clk 0:01:34]} 35. Nf6+ {[%clk 0:00:22.6]} 35... Kg7 {[%clk
0:01:33.6]} 36. Qe5 {[%clk 0:00:21.3]} 36... Rxf6 {[%clk 0:01:32.9]} 37. Qg5+
{[%clk 0:00:20.5]} 37... Bg6 {[%clk 0:01:32.4]} 38. f3 {[%clk 0:00:19.8]} 38...
Rf5 {[%clk 0:01:28.3]} 39. Qe3 {[%clk 0:00:19.5]} 39... b6 {[%clk 0:01:26.1]}
40. Qe7+ {[%clk 0:00:19.2]} 40... R8f7 {[%clk 0:01:26.1]} 41. Qe3 {[%clk
0:00:19.3]} 41... Ra5 {[%clk 0:01:26.4]} 42. Qc3+ {[%clk 0:00:16.5]} 42... Rf6
{[%clk 0:01:26.8]} 43. Qc7+ {[%clk 0:00:15.5]} 43... Bf7 {[%clk 0:01:27.2]} 44.
f4 {[%clk 0:00:13.9]} 44... Rxa2 {[%clk 0:01:25.3]} 45. Kh2 {[%clk 0:00:13.1]}
45... h5 {[%clk 0:01:23.7]} 46. Qc3 {[%clk 0:00:07.5]} 46... Bd5 {[%clk
0:01:21.2]} 47. Qg3+ {[%clk 0:00:06.5]} 47... Rg6 {[%clk 0:01:19.6]} 48. Qc3+
{[%clk 0:00:06.3]} 48... Kh7 {[%clk 0:01:19.9]} 49. Kh3 {[%clk 0:00:06.1]} 49...
Raxg2 {[%clk 0:01:18.3]} 50. Qc7+ {[%clk 0:00:05.8]} 50... Kh6 {[%clk
0:01:18.2]} 51. f5 {[%clk 0:00:05.4]} 51... R6g3+ {[%clk 0:01:06]} 52. Kh4
{[%clk 0:00:05.3]} 52... Rg4+ {[%clk 0:01:06.9]} 53. Kh3 {[%clk 0:00:05.2]}
53... R2g3+ {[%clk 0:01:07.8]} 54. Kh2 {[%clk 0:00:04.9]} 54... Rg1 {[%clk
0:01:03.7]} 55. Qd6+ {[%clk 0:00:04.1]} 55... Kg5 {[%clk 0:01:04.3]} 56. Qxd5
{[%clk 0:00:04.3]} 56... R1g2+ {[%clk 0:00:57.4]} 57. Kh3 {[%clk 0:00:03.6]}
57... R2g3+ {[%clk 0:00:56.6]} 58. Kh2 {[%clk 0:00:03.6]} 58... Rg2+ {[%clk
0:00:50.4]} 59. Kh3 {[%clk 0:00:04]} 59... R4g3# {[%clk 0:00:50.3]} 0-1

[Event "*** Titled Tuesday Blitz"]
[Site "Chess.com"]
[Date "2020.05.05"]
[Round "7"]
[White "nickmatta"]
[Black "calin_dragomirescu"]
[Result "1-0"]
[WhiteElo "2452"]
[BlackElo "2302"]
[TimeControl "180+1"]
[EndTime "11:19:18 PDT"]
[Termination "nickmatta won by resignation"]

1. d4 {[%clk 0:03:00.9]} 1... g6 {[%clk 0:02:58]} 2. c4 {[%clk 0:02:58.4]} 2...
Bg7 {[%clk 0:02:58.2]} 3. Nc3 {[%clk 0:02:59]} 3... d6 {[%clk 0:02:58.5]} 4. e4
{[%clk 0:02:58.6]} 4... Nf6 {[%clk 0:02:58.6]} 5. Bd3 {[%clk 0:02:58.5]} 5...
Nc6 {[%clk 0:02:57.7]} 6. Nge2 {[%clk 0:02:58.6]} 6... O-O {[%clk 0:02:54.8]} 7.
O-O {[%clk 0:02:58.2]} 7... e5 {[%clk 0:02:54.2]} 8. d5 {[%clk 0:02:58.8]} 8...
Nd4 {[%clk 0:02:54.4]} 9. Bg5 {[%clk 0:02:59.5]} 9... c5 {[%clk 0:02:49.4]} 10.
Qd2 {[%clk 0:02:58.5]} 10... a6 {[%clk 0:02:46.3]} 11. Rab1 {[%clk 0:02:44.1]}
11... Rb8 {[%clk 0:02:44.7]} 12. b4 {[%clk 0:02:41.6]} 12... cxb4 {[%clk
0:02:24.9]} 13. Rxb4 {[%clk 0:02:42.5]} 13... Nxe2+ {[%clk 0:02:23.8]} 14. Bxe2
{[%clk 0:02:33.2]} 14... Qc7 {[%clk 0:02:15.8]} 15. Rb2 {[%clk 0:01:55]} 15...
Re8 {[%clk 0:02:10.4]} 16. f4 {[%clk 0:01:46.1]} 16... exf4 {[%clk 0:02:08]} 17.
Qxf4 {[%clk 0:01:43]} 17... Nxe4 {[%clk 0:01:51.4]} 18. Nxe4 {[%clk 0:01:13]}
18... Bxb2 {[%clk 0:01:50.3]} 19. Nf6+ {[%clk 0:00:31.8]} 19... Kf8 {[%clk
0:01:12.4]} 20. Nxh7+ {[%clk 0:00:29.1]} 20... Kg7 {[%clk 0:01:09.8]} 21. Nf6
{[%clk 0:00:13.5]} 21... Kf8 {[%clk 0:00:57.9]} 22. Bh6+ {[%clk 0:00:08.8]}
22... Ke7 {[%clk 0:00:57.4]} 23. Nxe8 {[%clk 0:00:04.3]} 23... Kxe8 {[%clk
0:00:46.5]} 24. Bd3 {[%clk 0:00:04.9]} 24... Be5 {[%clk 0:00:43.8]} 25. Qh4
{[%clk 0:00:02.5]} 25... Qc5+ {[%clk 0:00:39.2]} 26. Kh1 {[%clk 0:00:02]} 26...
Qd4 {[%clk 0:00:39.3]} 27. Bf4 {[%clk 0:00:01.5]} 27... Bxf4 {[%clk 0:00:32.6]}
28. Rxf4 {[%clk 0:00:02.3]} 28... Qa1+ {[%clk 0:00:27.8]} 29. Rf1 {[%clk
0:00:01.9]} 29... Qg7 {[%clk 0:00:24]} 30. Qe4+ {[%clk 0:00:02]} 30... Kf8
{[%clk 0:00:24]} 31. Qf3 {[%clk 0:00:02.7]} 31... Bd7 {[%clk 0:00:22.2]} 32. Be4
{[%clk 0:00:03.2]} 32... Re8 {[%clk 0:00:21.4]} 33. c5 {[%clk 0:00:03.5]} 33...
Re5 {[%clk 0:00:21.4]} 34. cxd6 {[%clk 0:00:03.6]} 34... b5 {[%clk 0:00:20.8]}
35. Bd3 {[%clk 0:00:03.8]} 35... Kg8 {[%clk 0:00:20.5]} 36. Qf4 {[%clk
0:00:03.9]} 36... Bf5 {[%clk 0:00:20.1]} 37. Bxf5 {[%clk 0:00:03.9]} 37... Rxf5
{[%clk 0:00:20.2]} 38. Qc1 {[%clk 0:00:04.8]} 38... Rxf1+ {[%clk 0:00:19.7]} 39.
Qxf1 {[%clk 0:00:05.7]} 39... Qd4 {[%clk 0:00:19.6]} 40. h3 {[%clk 0:00:02.5]}
40... Kg7 {[%clk 0:00:19.3]} 41. Qf3 {[%clk 0:00:01.9]} 41... Qa1+ {[%clk
0:00:18.2]} 42. Kh2 {[%clk 0:00:01.9]} 42... Qe5+ {[%clk 0:00:18.4]} 43. Qg3
{[%clk 0:00:02.7]} 43... Qe8 {[%clk 0:00:16.9]} 44. Qc3+ {[%clk 0:00:03.1]}
44... f6 {[%clk 0:00:16.4]} 45. Qc7+ {[%clk 0:00:02.7]} 45... Kh6 {[%clk
0:00:16.6]} 46. d7 {[%clk 0:00:02.3]} 46... Qe7 {[%clk 0:00:16.9]} 47. d8=Q
{[%clk 0:00:02.5]} 47... Qxd8 {[%clk 0:00:14.7]} 48. Qxd8 {[%clk 0:00:02.4]}
48... f5 {[%clk 0:00:15.6]} 49. Qe7 {[%clk 0:00:02.7]} 49... f4 {[%clk
0:00:16.1]} 50. d6 {[%clk 0:00:03.6]} 50... f3 {[%clk 0:00:16.5]} 51. gxf3
{[%clk 0:00:04.5]} 1-0

[Event "*** Titled Tuesday Blitz"]
[Site "Chess.com"]
[Date "2020.05.05"]
[Round "7"]
[White "Kezin_Roman"]
[Black "nurgyulsalimova"]
[Result "1-0"]
[WhiteElo "2789"]
[BlackElo "2580"]
[TimeControl "180+1"]
[EndTime "11:19:19 PDT"]
[Termination "Kezin_Roman won by checkmate"]

1. d4 {[%clk 0:03:00.9]} 1... Nf6 {[%clk 0:03:00]} 2. c4 {[%clk 0:03:01.3]} 2...
e6 {[%clk 0:02:59.1]} 3. g3 {[%clk 0:03:01.5]} 3... d5 {[%clk 0:02:58.7]} 4. Bg2
{[%clk 0:03:02.4]} 4... Be7 {[%clk 0:02:57.3]} 5. Nf3 {[%clk 0:03:02.8]} 5...
O-O {[%clk 0:02:56.5]} 6. O-O {[%clk 0:03:03.7]} 6... dxc4 {[%clk 0:02:56.3]} 7.
Qc2 {[%clk 0:03:04.2]} 7... b6 {[%clk 0:02:56.5]} 8. Bg5 {[%clk 0:03:03]} 8...
Nd5 {[%clk 0:02:56.1]} 9. Bxe7 {[%clk 0:03:02.7]} 9... Qxe7 {[%clk 0:02:56.7]}
10. Nbd2 {[%clk 0:03:03]} 10... c5 {[%clk 0:02:49.9]} 11. dxc5 {[%clk 0:02:59]}
11... Qxc5 {[%clk 0:02:38.1]} 12. Ng5 {[%clk 0:02:55.7]} 12... g6 {[%clk
0:02:34.7]} 13. Nge4 {[%clk 0:02:49.6]} 13... Qe7 {[%clk 0:02:24.7]} 14. Nxc4
{[%clk 0:02:49.4]} 14... Ba6 {[%clk 0:02:17.5]} 15. Ne5 {[%clk 0:02:44.9]} 15...
Rc8 {[%clk 0:02:11.7]} 16. Qb3 {[%clk 0:02:43.6]} 16... Nc6 {[%clk 0:02:02.2]}
17. Nxc6 {[%clk 0:02:43]} 17... Rxc6 {[%clk 0:02:02.1]} 18. Nc3 {[%clk
0:02:25.1]} 18... Rd8 {[%clk 0:01:04.3]} 19. Rfd1 {[%clk 0:02:20]} 19... Nxc3
{[%clk 0:00:56.7]} 20. Rxd8+ {[%clk 0:02:19.3]} 20... Qxd8 {[%clk 0:00:55.4]}
21. Bxc6 {[%clk 0:02:07]} 21... Nxe2+ {[%clk 0:00:55.3]} 22. Kg2 {[%clk
0:01:40.2]} 22... Nd4 {[%clk 0:00:50.9]} 23. Qc3 {[%clk 0:01:32.8]} 23... Qd6
{[%clk 0:00:40.8]} 24. Ba8 {[%clk 0:01:26.4]} 24... h5 {[%clk 0:00:33.1]} 25.
Kh1 {[%clk 0:01:00.3]} 25... h4 {[%clk 0:00:31.1]} 26. Bg2 {[%clk 0:01:00.2]}
26... e5 {[%clk 0:00:19.3]} 27. Qa3 {[%clk 0:00:45.1]} 27... Qxa3 {[%clk
0:00:17]} 28. bxa3 {[%clk 0:00:46]} 28... hxg3 {[%clk 0:00:16.4]} 29. hxg3
{[%clk 0:00:45.5]} 29... Bc4 {[%clk 0:00:14]} 30. a4 {[%clk 0:00:39.7]} 30...
Kg7 {[%clk 0:00:11.9]} 31. Re1 {[%clk 0:00:33.2]} 31... f6 {[%clk 0:00:11.5]}
32. Rc1 {[%clk 0:00:33.1]} 32... Bxa2 {[%clk 0:00:10.8]} 33. Rc7+ {[%clk
0:00:33.6]} 33... Kh6 {[%clk 0:00:11.3]} 34. Rxa7 {[%clk 0:00:34.2]} 34... Bb3
{[%clk 0:00:09.7]} 35. Ra6 {[%clk 0:00:32.7]} 35... Kg5 {[%clk 0:00:09.2]} 36.
Bb7 {[%clk 0:00:14.9]} 36... f5 {[%clk 0:00:06.5]} 37. Kg2 {[%clk 0:00:13.5]}
37... f4 {[%clk 0:00:03.3]} 38. Be4 {[%clk 0:00:09.5]} 38... fxg3 {[%clk
0:00:03.2]} 39. fxg3 {[%clk 0:00:09.8]} 39... Bc4 {[%clk 0:00:02]} 40. Rxb6
{[%clk 0:00:08.4]} 40... Bb3 {[%clk 0:00:02]} 41. Rxg6+ {[%clk 0:00:07.9]} 41...
Kh5 {[%clk 0:00:02.2]} 42. Kh3 {[%clk 0:00:06.5]} 42... Bd5 {[%clk 0:00:01.5]}
43. g4# {[%clk 0:00:07]} 1-0

[Event "*** Titled Tuesday Blitz"]
[Site "Chess.com"]
[Date "2020.05.05"]
[Round "7"]
[White "tigra"]
[Black "Sam_ChessMood"]
[Result "0-1"]
[WhiteElo "2803"]
[BlackElo "2882"]
[TimeControl "180+1"]
[EndTime "11:19:23 PDT"]
[Termination "Sam_ChessMood won by resignation"]

1. e4 {[%clk 0:03:00.9]} 1... c5 {[%clk 0:02:59.6]} 2. Nf3 {[%clk 0:02:59]} 2...
d6 {[%clk 0:03:00]} 3. d4 {[%clk 0:02:58.1]} 3... cxd4 {[%clk 0:03:00.2]} 4.
Nxd4 {[%clk 0:02:58]} 4... Nf6 {[%clk 0:03:00.6]} 5. Nc3 {[%clk 0:02:56.6]} 5...
a6 {[%clk 0:03:01]} 6. Be3 {[%clk 0:02:54]} 6... e5 {[%clk 0:03:00.6]} 7. Nb3
{[%clk 0:02:50.4]} 7... Be6 {[%clk 0:02:59]} 8. Qd2 {[%clk 0:02:47.5]} 8... Nbd7
{[%clk 0:02:54.7]} 9. O-O-O {[%clk 0:02:46.4]} 9... Rc8 {[%clk 0:02:52.8]} 10.
f3 {[%clk 0:02:45.5]} 10... h5 {[%clk 0:02:48.4]} 11. g3 {[%clk 0:02:39.5]}
11... b5 {[%clk 0:02:46.9]} 12. Kb1 {[%clk 0:02:39.4]} 12... Be7 {[%clk
0:02:46.6]} 13. h3 {[%clk 0:02:36.7]} 13... Qc7 {[%clk 0:02:30.8]} 14. a3 {[%clk
0:02:24.1]} 14... g6 {[%clk 0:00:43.8]} 15. Qf2 {[%clk 0:02:17.6]} 15... Qb7
{[%clk 0:00:36.9]} 16. Na5 {[%clk 0:01:57.8]} 16... Qc7 {[%clk 0:00:35.6]} 17.
Nb3 {[%clk 0:01:56.4]} 17... Qb7 {[%clk 0:00:36]} 18. Bd3 {[%clk 0:01:50.2]}
18... Rxc3 {[%clk 0:00:35.3]} 19. bxc3 {[%clk 0:01:50]} 19... d5 {[%clk
0:00:35.3]} 20. Nc5 {[%clk 0:01:34.3]} 20... Nxc5 {[%clk 0:00:19.7]} 21. Bxc5
{[%clk 0:01:35.2]} 21... O-O {[%clk 0:00:19.8]} 22. Kb2 {[%clk 0:01:29.2]} 22...
Rc8 {[%clk 0:00:19.7]} 23. Bb4 {[%clk 0:01:23.4]} 23... a5 {[%clk 0:00:15.7]}
24. Bxa5 {[%clk 0:01:22]} 24... Bxa3+ {[%clk 0:00:15.4]} 25. Kxa3 {[%clk
0:01:21.6]} 25... Ra8 {[%clk 0:00:15.7]} 26. Kb4 {[%clk 0:01:11.2]} 26... Nd7
{[%clk 0:00:11.9]} 27. Ra1 {[%clk 0:01:08.2]} 27... Qc6 {[%clk 0:00:10.7]} 28.
Bc7 {[%clk 0:00:51.5]} 28... Rc8 {[%clk 0:00:09]} 29. Ra7 {[%clk 0:00:48.2]}
29... Rxc7 {[%clk 0:00:09.3]} 30. Rxc7 {[%clk 0:00:47.8]} 30... Qxc7 {[%clk
0:00:10.2]} 31. Ra1 {[%clk 0:00:43]} 31... Qd6+ {[%clk 0:00:09.6]} 32. Kxb5
{[%clk 0:00:39.2]} 32... d4 {[%clk 0:00:10]} 33. Ra6 {[%clk 0:00:28.1]} 33...
Qc5+ {[%clk 0:00:06.3]} 34. Ka4 {[%clk 0:00:27.9]} 34... Qxc3 {[%clk 0:00:05.1]}
35. Rxe6 {[%clk 0:00:16.7]} 35... Nc5+ {[%clk 0:00:03.6]} 36. Kb5 {[%clk
0:00:17]} 36... Nxe6 {[%clk 0:00:03.8]} 37. Qf1 {[%clk 0:00:17.7]} 37... Kg7
{[%clk 0:00:04]} 38. h4 {[%clk 0:00:17.2]} 38... Qc5+ {[%clk 0:00:04]} 39. Ka4
{[%clk 0:00:17.2]} 39... Qb6 {[%clk 0:00:04.4]} 40. Bb5 {[%clk 0:00:17.2]} 40...
Nc5+ {[%clk 0:00:04.7]} 41. Kb4 {[%clk 0:00:17.5]} 41... Nb7 {[%clk 0:00:05.1]}
42. Qc4 {[%clk 0:00:17.3]} 42... Qa5+ {[%clk 0:00:05.4]} 43. Kb3 {[%clk
0:00:17.7]} 43... Nd6 {[%clk 0:00:05.7]} 44. Qc5 {[%clk 0:00:14.2]} 44... Qxb5+
{[%clk 0:00:05.8]} 45. Qxb5 {[%clk 0:00:14.9]} 45... Nxb5 {[%clk 0:00:06.7]} 46.
Kc4 {[%clk 0:00:15.8]} 46... Nc3 {[%clk 0:00:05.8]} 47. f4 {[%clk 0:00:15.4]}
47... Kf6 {[%clk 0:00:06]} 48. Kc5 {[%clk 0:00:15.1]} 48... Ke6 {[%clk
0:00:06.4]} 0-1

[Event "*** Titled Tuesday Blitz"]
[Site "Chess.com"]
[Date "2020.05.05"]
[Round "7"]
[White "VNeimer"]
[Black "LikeWater"]
[Result "1-0"]
[WhiteElo "2567"]
[BlackElo "2693"]
[TimeControl "180+1"]
[EndTime "11:19:23 PDT"]
[Termination "VNeimer won by resignation"]

1. e4 {[%clk 0:03:00.9]} 1... d6 {[%clk 0:02:59.2]} 2. Nc3 {[%clk 0:03:00.5]}
2... Nf6 {[%clk 0:02:58]} 3. g3 {[%clk 0:03:01.4]} 3... d5 {[%clk 0:02:57.3]} 4.
exd5 {[%clk 0:02:57.5]} 4... Nxd5 {[%clk 0:02:56.3]} 5. Nge2 {[%clk 0:02:57.3]}
5... e5 {[%clk 0:02:40.2]} 6. Bg2 {[%clk 0:02:56.9]} 6... Nxc3 {[%clk
0:02:38.8]} 7. Nxc3 {[%clk 0:02:57.8]} 7... Bd6 {[%clk 0:02:30.9]} 8. d4 {[%clk
0:02:52.6]} 8... O-O {[%clk 0:02:23.9]} 9. O-O {[%clk 0:02:50.7]} 9... exd4
{[%clk 0:02:14.5]} 10. Qxd4 {[%clk 0:02:51.6]} 10... Nc6 {[%clk 0:02:15.2]} 11.
Qa4 {[%clk 0:02:50.3]} 11... Bd7 {[%clk 0:02:14.5]} 12. Be3 {[%clk 0:02:39.1]}
12... Nb4 {[%clk 0:02:05.3]} 13. Qb3 {[%clk 0:02:39]} 13... Be6 {[%clk
0:02:05.5]} 14. Qa4 {[%clk 0:02:39.2]} 14... c6 {[%clk 0:01:57.2]} 15. Rad1
{[%clk 0:01:57.8]} 15... b5 {[%clk 0:01:11]} 16. Qa3 {[%clk 0:01:58]} 16... Nd5
{[%clk 0:00:37.9]} 17. Qa6 {[%clk 0:01:43.9]} 17... Nb4 {[%clk 0:00:36.6]} 18.
Qb7 {[%clk 0:01:34.8]} 18... Qe7 {[%clk 0:00:26.2]} 19. Bxc6 {[%clk 0:01:24.1]}
19... Rab8 {[%clk 0:00:16.7]} 20. Qxe7 {[%clk 0:01:22]} 20... Bxe7 {[%clk
0:00:17.6]} 21. Bxb5 {[%clk 0:01:15.9]} 21... Nxc2 {[%clk 0:00:14.9]} 22. Bxa7
{[%clk 0:01:13.4]} 22... Rb7 {[%clk 0:00:13.5]} 23. Bd4 {[%clk 0:01:00.4]} 23...
Nxd4 {[%clk 0:00:11.7]} 24. Rxd4 {[%clk 0:01:01.3]} 24... Bf6 {[%clk 0:00:11.3]}
25. Rb4 {[%clk 0:01:01.8]} 25... Rfb8 {[%clk 0:00:09.3]} 26. a4 {[%clk
0:01:01.3]} 26... Be7 {[%clk 0:00:04.7]} 27. Re4 {[%clk 0:00:51.5]} 27... Rc7
{[%clk 0:00:02.9]} 28. Rfe1 {[%clk 0:00:46.1]} 28... Bf6 {[%clk 0:00:03.4]} 29.
R1e3 {[%clk 0:00:41.6]} 29... g6 {[%clk 0:00:03.6]} 30. h4 {[%clk 0:00:36.6]}
30... Kg7 {[%clk 0:00:03.9]} 31. Kh2 {[%clk 0:00:25.9]} 31... h5 {[%clk
0:00:04.1]} 32. Rb4 {[%clk 0:00:24.6]} 32... Rbc8 {[%clk 0:00:04.2]} 33. Ne4
{[%clk 0:00:22.7]} 33... Be7 {[%clk 0:00:04.6]} 34. Rd4 {[%clk 0:00:21.9]} 34...
Rc1 {[%clk 0:00:04.6]} 35. Ng5 {[%clk 0:00:20.1]} 35... Bc5 {[%clk 0:00:04.8]}
36. Nxe6+ {[%clk 0:00:18]} 36... fxe6 {[%clk 0:00:05]} 37. Rd7+ {[%clk
0:00:18.9]} 37... Kh6 {[%clk 0:00:02.9]} 38. Rxe6 {[%clk 0:00:19.8]} 38... Bxf2
{[%clk 0:00:02.6]} 39. Ree7 {[%clk 0:00:19.9]} 39... g5 {[%clk 0:00:02.5]} 40.
Rh7+ {[%clk 0:00:19.2]} 40... Kg6 {[%clk 0:00:02.5]} 41. Bd3+ {[%clk 0:00:19.3]}
41... Kf6 {[%clk 0:00:02.9]} 42. Rhf7+ {[%clk 0:00:19.1]} 42... Ke5 {[%clk
0:00:03.2]} 43. Rxf2 {[%clk 0:00:18.9]} 43... g4 {[%clk 0:00:04.1]} 44. Re2+
{[%clk 0:00:19.1]} 44... Kf6 {[%clk 0:00:04.4]} 45. Rd6+ {[%clk 0:00:18.6]}
45... Kf7 {[%clk 0:00:04.9]} 46. Bg6+ {[%clk 0:00:18]} 46... Kg7 {[%clk
0:00:05.4]} 47. Bxh5 {[%clk 0:00:18.7]} 47... R8c2 {[%clk 0:00:05.6]} 48. Bxg4
{[%clk 0:00:18.9]} 48... Rxe2+ {[%clk 0:00:05.2]} 49. Bxe2 {[%clk 0:00:19.8]}
49... Rc2 {[%clk 0:00:06]} 50. Re6 {[%clk 0:00:20.3]} 50... Kf7 {[%clk
0:00:06.9]} 51. Re3 {[%clk 0:00:20.2]} 51... Rxb2 {[%clk 0:00:07.8]} 52. g4
{[%clk 0:00:20.2]} 52... Kf6 {[%clk 0:00:08.2]} 53. Kg2 {[%clk 0:00:19.8]} 53...
Ra2 {[%clk 0:00:09.1]} 54. Re4 {[%clk 0:00:19.7]} 54... Kg6 {[%clk 0:00:09.2]}
55. Kf2 {[%clk 0:00:20]} 55... Kf6 {[%clk 0:00:09.6]} 56. h5 {[%clk 0:00:20.1]}
56... Kg5 {[%clk 0:00:09.9]} 57. Re5+ {[%clk 0:00:20.4]} 57... Kf4 {[%clk
0:00:09.5]} 58. Rf5+ {[%clk 0:00:20.6]} 58... Ke4 {[%clk 0:00:09.7]} 59. h6
{[%clk 0:00:20.6]} 59... Ra1 {[%clk 0:00:10]} 60. h7 {[%clk 0:00:20.5]} 60...
Rh1 {[%clk 0:00:10.5]} 61. Rh5 {[%clk 0:00:20.8]} 1-0

[Event "*** Titled Tuesday Blitz"]
[Site "Chess.com"]
[Date "2020.05.05"]
[Round "7"]
[White "Roenko_Artur"]
[Black "fabianvivasz"]
[Result "0-1"]
[WhiteElo "2194"]
[BlackElo "2359"]
[TimeControl "180+1"]
[EndTime "11:19:23 PDT"]
[Termination "fabianvivasz won on time"]

1. e4 {[%clk 0:03:00.9]} 1... c5 {[%clk 0:02:58.1]} 2. d4 {[%clk 0:02:59.3]}
2... cxd4 {[%clk 0:02:58]} 3. c3 {[%clk 0:02:56.8]} 3... Nf6 {[%clk 0:02:54.3]}
4. e5 {[%clk 0:02:56]} 4... Nd5 {[%clk 0:02:53.7]} 5. cxd4 {[%clk 0:02:56]} 5...
d6 {[%clk 0:02:53.7]} 6. Nf3 {[%clk 0:02:54.7]} 6... Nc6 {[%clk 0:02:52.1]} 7.
Bc4 {[%clk 0:02:54.6]} 7... e6 {[%clk 0:02:52]} 8. O-O {[%clk 0:02:49.3]} 8...
dxe5 {[%clk 0:02:37.6]} 9. dxe5 {[%clk 0:02:47.7]} 9... Nb6 {[%clk 0:02:37.2]}
10. Bb5 {[%clk 0:02:36.8]} 10... Qxd1 {[%clk 0:02:35.3]} 11. Rxd1 {[%clk
0:02:36.2]} 11... Bd7 {[%clk 0:02:32.3]} 12. Be3 {[%clk 0:02:33.3]} 12... Nd5
{[%clk 0:02:15.2]} 13. Bxc6 {[%clk 0:02:04.5]} 13... Bxc6 {[%clk 0:02:10.1]} 14.
Bd4 {[%clk 0:01:51.9]} 14... Nf4 {[%clk 0:01:46.2]} 15. Nc3 {[%clk 0:01:36]}
15... g5 {[%clk 0:01:40.8]} 16. Be3 {[%clk 0:01:24.9]} 16... Nxg2 {[%clk
0:01:37.2]} 17. Nd4 {[%clk 0:00:42.8]} 17... Nxe3 {[%clk 0:01:35.2]} 18. fxe3
{[%clk 0:00:42.4]} 18... Bc5 {[%clk 0:01:33.4]} 19. Kf2 {[%clk 0:00:37.7]} 19...
Bxd4 {[%clk 0:01:00.1]} 20. exd4 {[%clk 0:00:36]} 20... Rd8 {[%clk 0:00:57.2]}
21. Ke3 {[%clk 0:00:35.2]} 21... Ke7 {[%clk 0:00:50.3]} 22. Rf1 {[%clk
0:00:29.4]} 22... Rdf8 {[%clk 0:00:32.6]} 23. Rf6 {[%clk 0:00:28]} 23... h5
{[%clk 0:00:27.2]} 24. Raf1 {[%clk 0:00:27.3]} 24... g4 {[%clk 0:00:23.6]} 25.
Rg1 {[%clk 0:00:24.6]} 25... Rfg8 {[%clk 0:00:21]} 26. Ne2 {[%clk 0:00:23]}
26... Rg6 {[%clk 0:00:19.2]} 27. Rxg6 {[%clk 0:00:20.3]} 27... fxg6 {[%clk
0:00:20.1]} 28. Nf4 {[%clk 0:00:20]} 28... Rh6 {[%clk 0:00:20.2]} 29. Rf1 {[%clk
0:00:19.3]} 29... g5 {[%clk 0:00:20.3]} 30. Nd3 {[%clk 0:00:17.5]} 30... h4
{[%clk 0:00:20.3]} 31. Nf2 {[%clk 0:00:15.1]} 31... g3 {[%clk 0:00:19.5]} 32.
hxg3 {[%clk 0:00:14.1]} 32... hxg3 {[%clk 0:00:20.4]} 33. Ng4 {[%clk 0:00:11.6]}
33... Rh4 {[%clk 0:00:20.4]} 34. Nf6 {[%clk 0:00:10.4]} 34... g2 {[%clk
0:00:19.6]} 35. Rg1 {[%clk 0:00:10.4]} 35... Rh1 {[%clk 0:00:18.8]} 36. Kf2
{[%clk 0:00:10]} 36... Rxg1 {[%clk 0:00:18.4]} 37. Kxg1 {[%clk 0:00:10]} 37...
Kf7 {[%clk 0:00:18.3]} 38. d5 {[%clk 0:00:03.7]} 38... Bxd5 {[%clk 0:00:17.9]}
39. Nh5 {[%clk 0:00:01.6]} 39... Kg6 {[%clk 0:00:17.4]} 40. Ng3 {[%clk
0:00:01.7]} 40... g4 {[%clk 0:00:17.6]} 41. Kf2 {[%clk 0:00:01.3]} 41... Kg5
{[%clk 0:00:17.4]} 42. b3 {[%clk 0:00:01]} 42... Kf4 {[%clk 0:00:17.1]} 0-1